bitfinex-derivatives/quotes_BTCF0:USTF0_20250327
["timestamp","ask_amount","ask_price","bid_price","bid_amount"]
[1743043765085,0.17620171,87769.0,87768.0,0.0323]
[1743043765274,0.17620171,87769.0,87768.0,0.146223]
[1743043765480,0.17620171,87769.0,87768.0,0.0323]
[1743043767196,0.17620171,87769.0,87768.0,0.0006]
[1743043767795,0.53700171,87769.0,87768.0,0.0006]
[1743043767991,0.56860171,87769.0,87768.0,0.0006]
[1743043768890,0.56860171,87769.0,87763.0,0.0328]
[1743043768891,0.1139282,87764.0,87763.0,0.0328]
[1743043769098,0.22824821,87764.0,87763.0,0.0334]
[1743043769792,0.29164821,87764.0,87763.0,0.0334]
[1743043772098,0.65244821,87764.0,87763.0,0.0334]
[1743043772900,0.65244821,87764.0,87763.0,0.0328]
[1743043773395,0.66368593,87764.0,87763.0,0.0328]
[1743043774601,0.66368593,87764.0,87763.0,0.1467295]
[1743043774602,0.60028593,87764.0,87763.0,0.1467295]
[1743043775000,0.60028593,87764.0,87763.0,0.1474095]
[1743043776596,0.60028593,87764.0,87763.0,0.03348]
[1743043777100,0.60028593,87764.0,87763.0,0.1786095]
[1743043779588,0.47452001,87764.0,87763.0,0.1786095]
[1743043779988,0.36168001,87764.0,87763.0,0.1786095]
[1743043780303,0.47452001,87764.0,87763.0,0.1786095]
[1743043781598,0.47448001,87764.0,87763.0,0.1786095]
[1743043782393,0.00088001,87764.0,87763.0,0.1786095]
[1743043784197,0.11480821,87764.0,87763.0,0.1786095]
[1743043784701,0.22744821,87764.0,87763.0,0.1786095]
[1743043785303,0.22744821,87764.0,87763.0,0.06468]
[1743043785508,0.22744821,87764.0,87763.0,0.00068]
[1743043785509,0.29174821,87764.0,87763.0,0.00068]
[1743043785693,0.29174821,87764.0,87760.0,0.00017097]
[1743043785694,0.1139321,87761.0,87760.0,0.00017097]
[1743043786001,0.47585211,87761.0,87760.0,0.00077097]
[1743043787297,0.47585211,87761.0,87756.0,0.27139456]
[1743043787298,0.1139373,87757.0,87756.0,0.27139456]
[1743043787499,0.1152573,87757.0,87756.0,0.27199456]
[1743043789001,0.4760573,87757.0,87756.0,0.27199456]
[1743043789296,0.4760573,87757.0,87749.0,0.33906859]
[1743043789297,0.0569693,87756.0,87749.0,0.33906859]
[1743043789498,0.1139568,87742.0,87738.0,0.38388795]
[1743043789692,0.1139568,87742.0,87739.0,0.0603]
[1743043789693,0.58891681,87742.0,87739.0,0.0603]
[1743043789994,0.59461754,87742.0,87739.0,0.0603]
[1743043790198,0.58891681,87742.0,87739.0,0.0603]
[1743043790500,0.65331681,87742.0,87739.0,0.0603]
[1743043790994,0.54079681,87742.0,87739.0,0.0603]
[1743043791200,0.47639681,87742.0,87739.0,0.0603]
[1743043791401,0.58891681,87742.0,87741.0,0.51760646]
[1743043792001,0.58891681,87742.0,87741.0,0.1139581]
[1743043792201,0.59754708,87742.0,87741.0,0.1139581]
[1743043792405,0.1139594,87740.0,87739.0,0.17426]
[1743043792599,0.00164001,87740.0,87739.0,0.17426]
[1743043794309,0.1138,87745.0,87744.0,0.1139542]
[1743043794512,0.11548,87745.0,87744.0,0.1139542]
[1743043795009,0.00168,87745.0,87744.0,0.2087542]
[1743043795404,0.00168,87745.0,87744.0,0.5695542]
[1743043795605,8e-05,87747.0,87746.0,0.1139516]
[1743043795805,0.00017097,87750.0,87749.0,0.1139477]
[1743043796009,0.00017097,87750.0,87749.0,0.12907372]
[1743043796201,0.00017097,87750.0,87749.0,0.1139477]
[1743043796397,0.00017097,87750.0,87749.0,0.1761477]
[1743043797306,0.00017097,87750.0,87749.0,0.19107112]
[1743043797708,0.00017097,87750.0,87749.0,0.1761477]
[1743043798307,0.13649037,87759.0,87752.0,0.1139438]
[1743043798601,0.2048581,87772.0,87764.0,0.1139282]
[1743043798806,0.17176176,87765.0,87764.0,0.1145282]
[1743043799205,0.2048581,87772.0,87764.0,0.54591035]
[1743043799412,1e-07,87777.0,87776.0,0.1139126]
[1743043799613,1e-07,87777.0,87776.0,0.93398265]
[1743043799803,7e-08,87777.0,87776.0,0.93398265]
[1743043800415,0.03132476,87779.0,87778.0,0.11391]
[1743043800715,0.03220476,87779.0,87778.0,0.15685814]
[1743043800914,0.03132476,87779.0,87778.0,0.53229931]
[1743043802706,0.00017029,87787.0,87780.0,0.0569533]
[1743043802906,0.00017029,87787.0,87786.0,0.4746997]
[1743043803214,0.03167029,87787.0,87786.0,0.48994087]
[1743043803406,0.17804869,87787.0,87786.0,0.48994087]
[1743043803606,0.17804869,87787.0,87786.0,0.01524117]
[1743043803915,0.53884869,87787.0,87786.0,0.01524117]
[1743043804103,0.53884869,87787.0,87786.0,0.01464117]
[1743043804509,0.1139087,87779.0,87778.0,0.11408057]
[1743043804710,0.2514687,87779.0,87778.0,0.11468057]
[1743043805010,0.13756,87779.0,87778.0,0.11468057]
[1743043805215,0.13756,87779.0,87778.0,0.17748057]
[1743043805401,0.19976,87779.0,87778.0,0.17748057]
[1743043805602,0.20056,87779.0,87778.0,0.17748057]
[1743043805813,0.00084,87779.0,87778.0,0.17748057]
[1743043806011,8e-05,87781.0,87780.0,0.1139074]
[1743043806310,0.13832,87786.0,87785.0,0.113901]
[1743043806516,0.3152197,87786.0,87785.0,0.114501]
[1743043806718,0.3152197,87786.0,87785.0,0.0006]
[1743043806912,0.1139064,87783.0,87780.0,0.0569535]
[1743043807112,0.1139061,87781.0,87780.0,0.00064]
[1743043807316,0.1147061,87781.0,87780.0,0.00064]
[1743043807508,0.1769061,87781.0,87780.0,0.00064]
[1743043808215,0.1139087,87779.0,87778.0,0.00017097]
[1743043808409,0.1139087,87779.0,87766.0,0.1139248]
[1743043808410,0.1139113,87777.0,87766.0,0.1139248]
[1743043808604,0.1149113,87777.0,87776.0,0.38448795]
[1743043809016,0.1766113,87777.0,87776.0,0.38448795]
[1743043810708,0.5374113,87777.0,87776.0,0.38448795]
[1743043811315,0.1766113,87777.0,87776.0,0.38448795]
[1743043811711,0.5374113,87777.0,87776.0,0.38448795]
[1743043812513,0.1139217,87769.0,87768.0,0.00017097]
[1743043812721,0.2531217,87769.0,87768.0,0.00077097]
[1743043812915,0.1139373,87758.0,87757.0,0.1139369]
[1743043813111,0.11533731,87758.0,87757.0,0.1470169]
[1743043813309,0.17793731,87758.0,87757.0,0.1799169]
[1743043813513,0.1779773,87758.0,87757.0,0.1799169]
[1743043813711,0.1759773,87758.0,87757.0,0.1799169]
[1743043813920,0.1749773,87758.0,87757.0,0.1799169]
[1743043814317,0.06404,87758.0,87757.0,0.1799169]
[1743043814512,0.06404,87758.0,87757.0,0.1849169]
[1743043814711,0.0626,87758.0,87757.0,0.1849169]
[1743043815817,0.06396,87758.0,87757.0,0.1879169]
[1743043817818,0.00136,87758.0,87757.0,0.1879169]
[1743043818126,0.05713377,87766.0,87757.0,0.1879169]
[1743043818127,0.05713377,87766.0,87765.0,0.1139269]
[1743043818313,0.00153097,87766.0,87765.0,0.1145269]
[1743043818509,0.00017097,87766.0,87765.0,0.1145269]
[1743043818727,0.00153097,87766.0,87765.0,0.1776269]
[1743043819312,0.00153097,87766.0,87765.0,0.1786269]
[1743043820219,0.00153097,87766.0,87765.0,0.1816269]
[1743043820730,0.00153097,87766.0,87765.0,0.19699908]
[1743043820731,0.00017097,87766.0,87765.0,0.19699908]
[1743043821319,0.00017097,87766.0,87765.0,0.19706295]
[1743043822427,0.00017097,87766.0,87765.0,0.22209436]
[1743043822817,0.00017097,87766.0,87765.0,0.23356726]
[1743043823918,0.90256,87786.0,87765.0,0.11964036]
[1743043824120,0.1773023,87784.0,87783.0,0.1139036]
[1743043824320,0.1786623,87784.0,87783.0,0.1139036]
[1743043824719,0.1786623,87784.0,87783.0,0.12861879]
[1743043826125,0.1796623,87784.0,87783.0,0.12861879]
[1743043826924,0.06576,87784.0,87783.0,0.12861879]
[1743043827119,0.1796623,87784.0,87783.0,0.12921879]
[1743043827324,0.1796623,87784.0,87783.0,0.12861879]
[1743043827521,0.1796623,87784.0,87783.0,0.1139036]
[1743043829330,0.1796623,87784.0,87783.0,0.12983568]
[1743043829827,0.1796623,87784.0,87783.0,0.1139036]
[1743043830625,0.42656,87784.0,87775.0,0.33795549]
[1743043830821,0.4747126,87776.0,87775.0,0.33931549]
[1743043831021,0.6121526,87776.0,87775.0,0.33931549]
[1743043831527,0.2513526,87776.0,87775.0,0.33931549]
[1743043831829,0.3171526,87776.0,87775.0,0.45322939]
[1743043832133,0.3173526,87776.0,87775.0,0.45322939]
[1743043832527,0.3173526,87776.0,87775.0,0.11544487]
[1743043832725,0.3174326,87776.0,87775.0,0.11544487]
[1743043833124,0.20352,87776.0,87775.0,0.11544487]
[1743043833325,0.03456,87776.0,87775.0,0.11544487]
[1743043833724,0.00136,87776.0,87775.0,0.11544487]
[1743043833922,0.1162726,87776.0,87775.0,0.11544487]
[1743043834325,0.1481726,87776.0,87775.0,0.11544487]
[1743043836430,0.1481726,87776.0,87775.0,0.14784487]
[1743043837128,0.1800726,87776.0,87775.0,0.14784487]
[1743043840049,0.06616,87776.0,87775.0,0.14784487]
[1743043840534,0.001,87776.0,87775.0,0.14784487]
[1743043841433,0.001,87776.0,87775.0,0.16255217]
[1743043842933,0.001,87776.0,87775.0,0.63483341]
[1743043843338,0.0312,87777.0,87776.0,0.1139126]
[1743043843638,0.0312,87777.0,87776.0,0.1292199]
[1743043843834,0.1754113,87777.0,87776.0,0.1937199]
[1743043844434,0.1754113,87777.0,87776.0,0.1790126]
[1743043844740,0.1764113,87777.0,87776.0,0.1790126]
[1743043845244,0.1764113,87777.0,87776.0,0.19404899]
[1743043845635,0.1764113,87777.0,87776.0,0.19405129]
[1743043845835,0.001,87777.0,87776.0,0.19405129]
[1743043846136,0.001,87777.0,87776.0,0.1790126]
[1743043847241,0.1149113,87777.0,87776.0,0.19396011]
[1743043847635,0.1149113,87777.0,87776.0,0.19396375]
[1743043848028,0.1149113,87777.0,87776.0,0.66624499]
[1743043848233,0.001,87777.0,87776.0,0.65129384]
[1743043848440,0.001,87777.0,87776.0,0.66615968]
[1743043849434,0.001,87777.0,87776.0,0.65129384]
[1743043849636,0.001,87777.0,87776.0,0.66636542]
[1743043852248,0.001,87777.0,87776.0,0.66638499]
[1743043854645,0.001,87777.0,87776.0,1.23096615]
[1743043855350,0.001,87777.0,87776.0,1.23055016]
[1743043856450,0.001,87777.0,87776.0,1.215875]
[1743043856851,0.001,87777.0,87776.0,1.23055181]
[1743043857445,0.0652,87777.0,87776.0,1.23055181]
[1743043857952,0.1791113,87777.0,87776.0,1.23055181]
[1743043858343,0.0652,87777.0,87776.0,1.23055181]
[1743043860346,0.1791113,87777.0,87776.0,1.05841496]
[1743043860764,0.1804713,87777.0,87776.0,1.05841496]
[1743043862056,0.1791113,87777.0,87776.0,1.05841496]
[1743043862364,0.1791113,87777.0,87776.0,1.00867734]
[1743043862557,0.1791113,87777.0,87776.0,1.00867733]
[1743043862954,0.1791113,87777.0,87776.0,0.89476495]
[1743043863159,0.31203131,87777.0,87776.0,0.47288124]
[1743043865365,0.67283131,87777.0,87776.0,0.50318124]
[1743043866355,0.31167131,87777.0,87776.0,0.61709384]
[1743043866555,0.31167131,87777.0,87776.0,0.1761126]
[1743043867661,0.31167131,87777.0,87776.0,0.0622]
[1743043867862,0.67247131,87777.0,87776.0,0.0622]
[1743043868366,0.67247131,87777.0,87776.0,0.0006]
[1743043868670,0.31167131,87777.0,87776.0,0.0006]
[1743043874863,0.67247131,87777.0,87776.0,0.0006]
[1743043875769,0.67247131,87777.0,87776.0,0.033]
[1743043877467,0.54131131,87777.0,87776.0,0.0645]
[1743043877773,0.67035131,87777.0,87776.0,0.0645]
[1743043878175,0.54131131,87777.0,87776.0,0.1784126]
[1743043878472,0.67043131,87777.0,87776.0,0.1784126]
[1743043878969,0.55640001,87777.0,87776.0,0.1784126]
[1743043879168,0.51021131,87777.0,87776.0,0.1784126]
[1743043879365,0.54301131,87777.0,87776.0,0.1784126]
[1743043879972,0.18221131,87777.0,87776.0,0.1784126]
[1743043880973,0.18221131,87777.0,87776.0,0.18969065]
[1743043881167,0.00240001,87777.0,87776.0,0.18969065]
[1743043881372,0.001,87777.0,87776.0,0.20496534]
[1743043883270,0.001,87777.0,87776.0,0.69589056]
[1743043884677,0.001,87777.0,87776.0,0.68061587]
[1743043886376,0.0311,87782.0,87781.0,0.1139061]
[1743043886573,0.1708611,87780.0,87779.0,0.1139074]
[1743043886877,0.1722211,87780.0,87779.0,0.1145074]
[1743043887070,0.2033211,87780.0,87779.0,0.1145074]
[1743043887375,0.2335211,87780.0,87779.0,0.1145074]
[1743043887573,0.2450354,87780.0,87779.0,0.0006]
[1743043889972,0.25073355,87780.0,87779.0,0.0006]
[1743043890170,0.1139113,87777.0,87776.0,0.49092522]
[1743043890372,0.25064945,87777.0,87776.0,0.49092522]
[1743043890775,0.1139126,87776.0,87775.0,0.00017097]
[1743043890969,0.54657076,87776.0,87775.0,0.00017097]
[1743043891971,0.54657076,87776.0,87768.0,0.40740425]
[1743043891972,0.0569589,87772.0,87768.0,0.40740425]
[1743043892168,0.4747217,87769.0,87768.0,0.40740425]
[1743043892368,0.48197986,87769.0,87768.0,0.40740425]
[1743043892976,0.54737986,87769.0,87768.0,0.40740425]
[1743043893569,0.55037986,87769.0,87768.0,0.40740425]
[1743043893971,0.1139321,87761.0,87760.0,0.00017097]
[1743043894169,0.6057721,87761.0,87760.0,0.00017097]
[1743043894875,0.7051721,87761.0,87760.0,0.00017097]
[1743043895069,1.0659721,87761.0,87760.0,0.00017097]
[1743043895975,1.0669721,87761.0,87760.0,0.00017097]
[1743043896179,0.1139334,87760.0,87759.0,0.27170825]
[1743043896474,0.1154534,87760.0,87759.0,0.27170825]
[1743043896676,0.1805534,87760.0,87759.0,0.27170825]
[1743043897478,0.1815534,87760.0,87759.0,0.27170825]
[1743043898183,0.1139425,87753.0,87752.0,0.00045583]
[1743043898487,0.4762625,87753.0,87752.0,0.11439963]
[1743043898682,0.6051025,87753.0,87752.0,0.11439963]
[1743043899582,0.6061025,87753.0,87752.0,0.00045583]
[1743043899770,0.6060225,87753.0,87752.0,0.00045583]
[1743043900380,0.6060225,87753.0,87752.0,0.11439963]
[1743043901880,0.6060225,87753.0,87752.0,0.14689963]
[1743043902184,0.61465466,87753.0,87752.0,0.14689963]
[1743043903786,0.48589466,87753.0,87752.0,0.03295583]
[1743043904083,0.62044314,87753.0,87752.0,0.03295583]
[1743043904286,0.62044314,87753.0,87751.0,0.00017097]
[1743043904287,0.1139438,87752.0,87751.0,0.00017097]
[1743043904586,0.1139477,87749.0,87748.0,0.0326]
[1743043904785,0.1154677,87749.0,87748.0,0.0326]
[1743043904986,0.18471618,87749.0,87748.0,0.0326]
[1743043906490,0.1787677,87749.0,87748.0,0.0326]
[1743043908182,0.1787677,87749.0,87748.0,0.0336]
[1743043908692,0.5395677,87749.0,87748.0,0.0336]
[1743043910191,0.6050277,87749.0,87748.0,0.0336]
[1743043910376,0.6050277,87749.0,87748.0,0.147549]
[1743043911992,0.2442277,87749.0,87748.0,0.147549]
[1743043912787,0.2438277,87749.0,87748.0,0.147549]
[1743043914495,0.2438277,87749.0,87748.0,0.0336]
[1743043914698,0.2438277,87749.0,87748.0,0.147549]
[1743043914888,0.2438277,87749.0,87748.0,0.0336]
[1743043916191,0.2432277,87749.0,87748.0,0.0336]
[1743043918887,0.6040277,87749.0,87748.0,0.0336]
[1743043921694,0.1139555,87743.0,87740.0,0.00017097]
[1743043921896,0.4747581,87741.0,87740.0,0.00017097]
[1743043922192,0.4763581,87741.0,87740.0,0.00017097]
[1743043922393,0.0016,87741.0,87740.0,0.17553037]
[1743043922598,0.474749,87749.0,87748.0,0.113949]
[1743043922894,0.603389,87749.0,87748.0,0.113949]
[1743043923098,0.1139503,87747.0,87746.0,0.0614]
[1743043923295,0.1154703,87747.0,87746.0,0.0614]
[1743043923489,0.1154703,87747.0,87746.0,0.1753516]
[1743043924191,0.1154703,87747.0,87746.0,0.0614]
[1743043924399,0.1164703,87747.0,87746.0,0.0614]
[1743043924592,0.1164703,87747.0,87746.0,0.1753516]
[1743043925393,0.1174703,87747.0,87746.0,0.1753516]
[1743043926596,0.1174703,87747.0,87746.0,0.0614]
[1743043927099,0.3059303,87747.0,87746.0,0.0614]
[1743043927500,0.1139568,87742.0,87741.0,0.27170825]
[1743043927804,0.1139633,87737.0,87735.0,0.33983026]
[1743043927993,1.51122361,87737.0,87735.0,0.33983026]
[1743043928300,1.51122361,87737.0,87720.0,0.00045599]
[1743043928301,0.1139724,87730.0,87720.0,0.00045599]
[1743043928488,0.48207271,87730.0,87720.0,0.00045599]
[1743043928800,0.48207271,87730.0,87721.0,0.0624]
[1743043928989,0.48207271,87730.0,87721.0,0.06251464]
[1743043929198,0.54417271,87730.0,87721.0,0.06251464]
[1743043930101,0.54617271,87730.0,87721.0,0.06251464]
[1743043930399,0.1139828,87722.0,87721.0,0.00011464]
[1743043930586,0.61377238,87722.0,87721.0,0.03241464]
[1743043930794,0.61377238,87722.0,87721.0,0.06441464]
[1743043931200,0.67617238,87722.0,87721.0,0.06441464]
[1743043931403,0.70837238,87722.0,87721.0,0.06441464]
[1743043931602,0.70837238,87722.0,87721.0,0.06541464]
[1743043935102,0.70777238,87722.0,87721.0,0.06541464]
[1743043936706,0.70777238,87722.0,87721.0,0.00111464]
[1743043937206,0.70777238,87722.0,87721.0,0.06211464]
[1743043941609,0.70741238,87722.0,87721.0,0.06211464]
[1743043942411,0.70729238,87722.0,87721.0,0.06211464]
[1743043944414,0.1139958,87712.0,87711.0,0.1139968]
[1743043944713,0.1139971,87711.0,87710.0,0.0308]
[1743043944908,0.1463171,87711.0,87710.0,0.0308]
[1743043945407,0.2088171,87711.0,87710.0,0.0308]
[1743043945612,0.2068171,87711.0,87710.0,0.0308]
[1743043946107,0.1443171,87711.0,87710.0,0.0308]
[1743043946306,0.00152,87711.0,87710.0,0.1457984]
[1743043946512,0.2389558,87712.0,87711.0,0.1154771]
[1743043946713,0.24003581,87712.0,87711.0,0.1160771]
[1743043946912,0.24003581,87712.0,87711.0,0.1477771]
[1743043947110,0.24003581,87712.0,87711.0,0.1462971]
[1743043947504,0.27083581,87712.0,87711.0,0.1778971]
[1743043947898,0.27083581,87712.0,87711.0,0.1788971]
[1743043949005,0.27083581,87712.0,87711.0,0.1798971]
[1743043949308,0.24003581,87712.0,87711.0,0.1798971]
[1743043950106,0.24003581,87712.0,87711.0,0.2103971]
[1743043954019,0.14827581,87712.0,87711.0,0.2103971]
[1743043954314,0.11507581,87712.0,87711.0,0.2103971]
[1743043955018,0.14727581,87712.0,87711.0,0.1798971]
[1743043955223,0.11507581,87712.0,87711.0,0.2103971]
[1743043955423,0.11507581,87712.0,87711.0,0.1798971]
[1743043955612,0.11507581,87712.0,87711.0,0.2103971]
[1743043957722,0.11507581,87712.0,87711.0,0.1798971]
[1743043958623,0.14587581,87712.0,87711.0,0.1798971]
[1743043959921,0.00108001,87712.0,87711.0,0.1798971]
[1743043960119,0.11507581,87712.0,87711.0,0.1798971]
[1743043961030,0.14647581,87712.0,87711.0,0.1798971]
[1743043966424,0.03248001,87712.0,87711.0,0.1798971]
[1743043966831,0.14647581,87712.0,87711.0,0.1798971]
[1743043970231,0.15217804,87712.0,87711.0,0.0659]
[1743043970724,0.15217804,87712.0,87711.0,0.0026]
[1743043972331,0.51297806,87712.0,87711.0,0.0026]
[1743043972732,0.51297806,87712.0,87701.0,0.40674706]
[1743043972733,0.0569992,87710.0,87701.0,0.40674706]
[1743043973027,0.4748088,87702.0,87701.0,0.40734706]
[1743043973222,0.60411106,87702.0,87701.0,0.40734706]
[1743043973820,0.66831106,87702.0,87701.0,0.0006]
[1743043974434,0.67681236,87702.0,87701.0,0.0006]
[1743043974625,0.67981236,87702.0,87701.0,0.0006]
[1743043975939,0.68381236,87702.0,87701.0,0.0006]
[1743043977924,0.1140244,87690.0,87689.0,0.0322]
[1743043978123,0.5965444,87690.0,87689.0,0.0322]
[1743043978333,0.5979844,87690.0,87689.0,0.0322]
[1743043978525,0.60950785,87690.0,87689.0,0.0328]
[1743043978726,0.67090785,87690.0,87689.0,0.0322]
[1743043979037,0.67090785,87690.0,87689.0,0.0328]
[1743043979333,0.67190785,87690.0,87689.0,0.0328]
[1743043979635,0.67190785,87690.0,87689.0,0.0006]
[1743043979823,0.1140257,87689.0,87679.0,0.1747381]
[1743043980021,0.1155057,87689.0,87679.0,0.1747381]
[1743043980233,0.1769057,87689.0,87680.0,0.114037]
[1743043980730,0.1769057,87689.0,87681.0,0.1140358]
[1743043980937,0.1769057,87689.0,87682.0,0.1747341]
[1743043981135,0.1769057,87689.0,87688.0,0.00105616]
[1743043981332,0.1769057,87689.0,87688.0,0.00045616]
[1743043981635,0.2983057,87689.0,87688.0,0.00113616]
[1743043981832,0.2983057,87689.0,87688.0,0.00045616]
[1743043982332,0.2983057,87689.0,87688.0,0.00105616]
[1743043982532,0.2993057,87689.0,87688.0,0.00045616]
[1743043982726,0.2993057,87689.0,87688.0,0.00113616]
[1743043983434,0.2993057,87689.0,87688.0,0.00045616]
[1743043983734,0.6601057,87689.0,87688.0,0.00113616]
[1743043983930,0.6597857,87689.0,87688.0,0.00045616]
[1743043984738,0.1779057,87689.0,87688.0,0.00045616]
[1743043984922,0.2675057,87689.0,87688.0,0.00105616]
[1743043985127,0.2675057,87689.0,87688.0,0.00045616]
[1743043985330,0.2675057,87689.0,87688.0,0.00105616]
[1743043986134,0.2675057,87689.0,87688.0,0.11448316]
[1743043986335,0.2675057,87689.0,87688.0,0.00105616]
[1743043986536,0.2675057,87689.0,87688.0,0.06495616]
[1743043986732,0.2675057,87689.0,87688.0,0.17898316]
[1743043988135,0.2675057,87689.0,87688.0,0.06495616]
[1743043989631,0.2675057,87689.0,87688.0,0.06435616]
[1743043989828,0.2675057,87689.0,87688.0,0.06495616]
[1743043990537,0.2675057,87689.0,87688.0,0.06435616]
[1743043990740,0.2978057,87689.0,87688.0,0.06435616]
[1743043992142,0.2978057,87689.0,87688.0,0.06495616]
[1743043992342,0.2971257,87689.0,87688.0,0.06435616]
[1743043992535,0.2971257,87689.0,87678.0,0.1140387]
[1743043992536,0.1140426,87676.0,87675.0,0.1710644]
[1743043992937,0.11592261,87676.0,87675.0,0.1710644]
[1743043993336,0.12762568,87676.0,87675.0,0.1710644]
[1743043993847,0.15762568,87676.0,87675.0,0.1710644]
[1743043994236,0.15762568,87676.0,87675.0,0.2036644]
[1743043994546,0.15762568,87676.0,87675.0,0.2066644]
[1743043994739,0.15762568,87676.0,87675.0,0.0926217]
[1743043997940,0.12762568,87676.0,87675.0,0.0926217]
[1743044019759,0.12762568,87676.0,87675.0,0.1251217]
[1743044021953,0.15952568,87676.0,87675.0,0.1251217]
[1743044023259,0.15952568,87676.0,87675.0,0.39657998]
[1743044023956,0.15952568,87676.0,87675.0,0.36407998]
[1743044025667,0.14782261,87676.0,87675.0,0.36407998]
[1743044025969,0.14782261,87676.0,87675.0,0.39447998]
[1743044026365,0.03378001,87676.0,87675.0,0.39447998]
[1743044026671,0.10224775,87677.0,87676.0,0.1140426]
[1743044026972,0.10412776,87677.0,87676.0,0.1771426]
[1743044027459,0.10420776,87677.0,87676.0,0.5379426]
[1743044027659,0.10232775,87677.0,87676.0,0.5379426]
[1743044028062,0.17044245,87691.0,87690.0,0.1140244]
[1743044028363,0.28638556,87691.0,87690.0,0.4748244]
[1743044028559,0.1140244,87690.0,87689.0,0.0307]
[1743044028759,0.1140283,87687.0,87686.0,0.1140288]
[1743044028964,0.1140348,87683.0,87682.0,0.1140304]
[1743044029164,0.1140316,87685.0,87683.0,0.0570162]
[1743044029369,0.1140316,87685.0,87684.0,0.0631]
[1743044030262,0.1140316,87685.0,87684.0,0.1771309]
[1743044032370,0.1140316,87685.0,87684.0,0.1781309]
[1743044034465,0.11591161,87685.0,87684.0,0.45044924]
[1743044034665,0.00188001,87685.0,87684.0,0.45044924]
[1743044034866,0.1140276,87688.0,87687.0,0.1140283]
[1743044035067,0.11590761,87688.0,87687.0,0.1140283]
[1743044036474,0.11690761,87688.0,87687.0,0.1140283]
[1743044042078,0.14800761,87688.0,87687.0,0.1140283]
[1743044044273,0.03398001,87688.0,87687.0,0.1140283]
[1743044044478,0.0321,87688.0,87687.0,0.1140283]
[1743044044679,0.146127,87688.0,87687.0,0.1140283]
[1743044044986,0.14800701,87688.0,87687.0,1.6140283]
[1743044045176,0.146127,87688.0,87687.0,1.6140283]
[1743044045881,0.146127,87688.0,87687.0,0.1140283]
[1743044046077,0.14800701,87688.0,87687.0,0.1140283]
[1743044046581,0.146127,87688.0,87687.0,0.1140283]
[1743044046779,0.146127,87688.0,87687.0,0.1789283]
[1743044047084,0.148087,87688.0,87687.0,0.38307976]
[1743044047479,0.146127,87688.0,87687.0,0.38307976]
[1743044048274,0.14800701,87688.0,87687.0,0.38307976]
[1743044050988,0.14800701,87688.0,87687.0,0.1789283]
[1743044053190,0.17860701,87688.0,87687.0,0.1789283]
[1743044053401,0.17860701,87688.0,87687.0,0.1472283]
[1743044054684,0.1140296,87686.0,87685.0,0.27231834]
[1743044054993,0.1159896,87686.0,87685.0,0.38634924]
[1743044056580,0.4767896,87686.0,87685.0,0.38634924]
[1743044056780,0.5954696,87686.0,87685.0,0.38634924]
[1743044057795,0.5954696,87686.0,87685.0,0.27231834]
[1743044059490,0.5954696,87686.0,87683.0,0.0625]
[1743044059491,0.1140322,87684.0,87683.0,0.0625]
[1743044059793,0.11595221,87684.0,87683.0,0.0625]
[1743044060293,0.17965221,87684.0,87683.0,0.0625]
[1743044060885,0.17965221,87684.0,87683.0,0.0635]
[1743044071190,0.17965221,87684.0,87683.0,0.1775335]
[1743044073690,0.17965221,87684.0,87683.0,0.0331]
[1743044073895,0.17965221,87684.0,87683.0,0.001]
[1743044074100,0.54615606,87684.0,87683.0,0.001]
[1743044075914,0.1140426,87676.0,87675.0,0.34039793]
[1743044076093,0.6140317,87676.0,87675.0,0.34039793]
[1743044076297,0.61402394,87676.0,87675.0,0.34039793]
[1743044076493,0.59978764,87676.0,87675.0,0.34039793]
[1743044076694,0.69238764,87676.0,87675.0,0.34039793]
[1743044077096,0.70661662,87676.0,87675.0,0.34039793]
[1743044077298,0.1140504,87670.0,87659.0,0.0302]
[1743044077501,0.48243544,87670.0,87659.0,0.0302]
[1743044077695,0.1140634,87660.0,87659.0,0.0302]
[1743044077910,0.5921034,87660.0,87659.0,0.0302]
[1743044078208,0.59398341,87660.0,87659.0,0.0302]
[1743044078410,0.1140647,87659.0,87658.0,0.47856353]
[1743044078599,0.17898471,87659.0,87658.0,0.47856353]
[1743044079112,0.19053714,87659.0,87658.0,0.47856353]
[1743044079410,0.18953714,87659.0,87658.0,0.47856353]
[1743044079805,0.114066,87658.0,87657.0,0.0319]
[1743044080106,0.11594601,87658.0,87657.0,0.0319]
[1743044080315,0.17794601,87658.0,87657.0,0.0319]
[1743044080505,0.18667859,87658.0,87657.0,0.0319]
[1743044081005,0.18667859,87658.0,87657.0,0.0329]
[1743044082009,0.18667859,87658.0,87657.0,0.0339]
[1743044082712,0.18667859,87658.0,87657.0,0.0667]
[1743044085704,0.54747859,87658.0,87657.0,0.0667]
[1743044086507,0.51557859,87658.0,87657.0,0.1807673]
[1743044086810,0.24143859,87658.0,87657.0,0.2108673]
[1743044088101,0.27253859,87658.0,87657.0,0.2108673]
[1743044089095,0.27253859,87658.0,87657.0,0.0968]
[1743044089297,0.27253859,87658.0,87657.0,0.0667]
[1743044089501,0.30323859,87658.0,87657.0,0.0667]
[1743044089697,0.66403859,87658.0,87657.0,0.0667]
[1743044091600,0.66403859,87658.0,87657.0,0.002]
[1743044092004,0.66403859,87658.0,87657.0,0.0322]
[1743044092914,0.67281519,87658.0,87657.0,0.0322]
[1743044093416,0.67381519,87658.0,87657.0,0.0312]
[1743044093916,0.67581519,87658.0,87657.0,0.0302]
[1743044094616,0.67584567,87658.0,87657.0,0.0302]
[1743044095409,0.31504567,87658.0,87657.0,0.0302]
[1743044095609,0.67584567,87658.0,87657.0,0.0302]
[1743044096319,0.31504567,87658.0,87657.0,0.0302]
[1743044096721,0.67584567,87658.0,87657.0,0.0302]
[1743044096923,0.66703859,87658.0,87657.0,0.0631]
[1743044098431,0.30623859,87658.0,87657.0,0.0631]
[1743044098724,0.66703859,87658.0,87657.0,0.0631]
[1743044100215,0.6727449,87658.0,87657.0,0.0631]
[1743044100411,0.66703859,87658.0,87657.0,0.0631]
[1743044100617,0.67274491,87658.0,87657.0,0.0631]
[1743044103023,0.68159155,87658.0,87657.0,0.0631]
[1743044103414,0.68159155,87658.0,87657.0,0.0302]
[1743044103927,0.68159159,87658.0,87657.0,0.0302]
[1743044105028,1.04835932,87658.0,87657.0,0.0302]
[1743044105319,1.08993663,87658.0,87657.0,0.004482]
[1743044105719,1.08995124,87658.0,87657.0,0.004482]
[1743044106124,0.0570363,87653.0,87646.0,0.032]
[1743044106420,0.4748803,87647.0,87646.0,0.032]
[1743044106628,0.61328105,87647.0,87646.0,0.032]
[1743044107213,0.67778105,87647.0,87646.0,0.032]
[1743044107419,0.67778105,87647.0,87646.0,0.033]
[1743044107922,0.67181332,87647.0,87646.0,0.033]
[1743044108119,0.66296668,87647.0,87646.0,0.032]
[1743044108425,0.66296668,87647.0,87646.0,0.034]